bitfinex-derivatives/quotes_ETHF0:USTF0_20240817
["timestamp","ask_amount","ask_price","bid_price","bid_amount"]
[1723923059747,1.104,2610.8,2610.6,1.11268431]
[1723923059947,1.4362,2610.7,2610.6,0.00868431]
[1723923060142,2.5402,2610.7,2610.6,0.00868431]
[1723923060753,12.8068,2610.7,2610.6,0.00868431]
[1723923060941,1.43647,2610.2,2609.9,2.5406]
[1723923061138,0.698,2610.1,2609.9,3.54213644]
[1723923061348,0.698,2610.1,2610.0,1.43658]
[1723923062055,0.698,2610.1,2610.0,1.43950801]
[1723923066450,0.698,2610.1,2610.0,0.00292801]
[1723923068861,0.698,2610.1,2610.0,1.43950801]
[1723923070353,0.00573833,2610.3,2610.2,1.43647]
[1723923070856,0.00573833,2610.3,2610.2,2.54047]
[1723923073446,0.00573833,2610.3,2610.2,1.43647]
[1723923077161,0.00573833,2610.3,2610.2,2.54047]
[1723923084657,0.00573833,2610.3,2610.2,5.26767]
[1723923084863,0.00573833,2610.3,2610.2,6.37167]
[1723923089573,0.00573833,2610.3,2610.2,2.54047]
[1723923091571,0.00573833,2610.3,2610.2,1.43647]
[1723923091872,0.38513833,2610.3,2610.2,1.43647]
[1723923101477,2.92555833,2610.3,2610.2,1.00153644]
[1723923101673,1.43647,2610.2,2610.0,2.44103445]
[1723923101867,1.4619,2610.2,2610.0,2.44103445]
[1723923102168,1.43653,2610.1,2610.0,1.43950801]
[1723923102370,2.89841,2610.2,2610.0,1.43950801]
[1723923102572,1.43653,2610.1,2610.0,1.43950801]
[1723923104485,1.43653,2610.1,2610.0,2.44104445]
[1723923104779,1.43653,2610.1,2610.0,1.43950801]
[1723923105180,1.43653,2610.1,2610.0,2.44104445]
[1723923105373,2.8984,2610.2,2610.0,1.43950801]
[1723923105569,0.3579,2610.2,2610.1,1.43653]
[1723923105965,4.1891,2610.2,2610.1,1.43653]
[1723923106568,5.62557,2610.2,2610.1,1.43653]
[1723923106972,0.3579,2610.2,2610.1,2.54053]
[1723923107179,0.00573833,2610.3,2610.2,1.43647]
[1723923107384,0.00573833,2610.3,2610.2,4.35575548]
[1723923107582,0.00573833,2610.3,2610.2,4.85398015]
[1723923108177,3.2078,2610.7,2610.2,8.68518015]
[1723923108387,4.644,2610.7,2610.6,1.43625]
[1723923109078,3.2078,2610.7,2610.6,2.43982371]
[1723923109380,3.2078,2610.7,2610.6,1.43625]
[1723923109381,4.644,2610.7,2610.6,1.43625]
[1723923110279,1.43625,2610.6,2610.5,2.43987371]
[1723923110484,2.54025,2610.6,2610.5,2.43988371]
[1723923110678,6.37065,2610.6,2610.5,1.43631]
[1723923110984,6.37065,2610.6,2610.5,2.43988371]
[1723923111484,6.37065,2610.6,2610.5,1.43631]
[1723923112074,6.37065,2610.6,2610.4,2.43990371]
[1723923112378,0.3541,2610.5,2610.4,1.43633]
[1723923112579,0.3541,2610.5,2610.4,4.35530482]
[1723923112774,0.3541,2610.5,2610.4,3.35177036]
[1723923112978,0.3541,2610.5,2610.4,4.85713093]
[1723923113177,0.3541,2610.5,2610.4,3.35177036]
[1723923114173,0.7195,2610.5,2610.4,3.35177036]
[1723923114780,0.7195,2610.5,2610.4,4.35530338]
[1723923115081,0.7195,2610.5,2610.4,4.3553006]
[1723923115280,0.7195,2610.5,2610.4,3.35176758]
[1723923115787,0.7195,2610.5,2610.4,4.35525517]
[1723923116890,0.7195,2610.5,2610.4,4.35529359]
[1723923117574,1.0831,2610.5,2610.4,4.35529359]
[1723923117779,1.0831,2610.5,2610.4,4.85716657]
[1723923117982,1.104,2610.6,2610.5,1.43631]
[1723923118186,1.104,2610.7,2610.6,1.43624]
[1723923118390,1.4676,2610.7,2610.6,1.43624]
[1723923118780,2.9038,2610.7,2610.6,1.43624]
[1723923119183,2.9038,2610.7,2610.5,2.43966018]
[1723923119887,2.9038,2610.7,2610.5,1.43626]
[1723923120286,2.9038,2610.7,2610.5,2.43966018]
[1723923120590,0.6887,2610.8,2610.5,2.43966018]
[1723923120591,0.3441,2610.8,2610.6,1.104]
[1723923120783,0.3441,2610.8,2610.6,2.43964018]
[1723923120982,2.9002,2610.7,2610.5,1.43627]
[1723923121182,2.9002,2610.7,2610.5,2.43967018]
[1723923121579,1.464,2610.7,2610.6,1.43625]
[1723923122183,0.3441,2610.8,2610.7,1.4362]
[1723923124894,2.91775833,2610.9,2610.8,1.43614]
[1723923124895,0.00573833,2610.9,2610.8,1.43614]
[1723923125094,0.00573833,2610.9,2610.8,4.26195773]
[1723923125298,0.00573833,2610.9,2610.8,10.00705029]
[1723923125486,0.00573833,2610.9,2610.8,10.51003392]
[1723923126291,0.00573833,2610.9,2610.8,10.00675817]
[1723923126488,0.00573833,2610.9,2610.8,8.09172482]
[1723923126788,0.00573833,2610.9,2610.7,1.00208482]
[1723923126789,1.10973833,2610.9,2610.7,1.00208482]
[1723923126993,1.10973833,2610.9,2610.6,1.50536057]
[1723923126994,3.23404,2610.8,2610.6,2.43830482]
[1723923127187,3.23404,2610.8,2610.6,1.43622]
[1723923127383,0.3695,2610.7,2610.6,1.43622]
[1723923127583,0.3695,2610.7,2610.4,1.00208482]
[1723923127785,1.104,2610.6,2610.2,1.00208482]
[1723923127996,1.43642,2610.3,2610.1,1.4365]
[1723923128192,1.0634,2610.2,2610.1,1.4365]
[1723923142102,1.0634,2610.2,2610.1,2.5405]
[1723923149312,1.0634,2610.2,2610.1,2.43858482]
[1723923149506,1.0634,2610.2,2610.1,1.4365]
[1723923151398,1.43653,2610.1,2610.0,0.00292801]
[1723923151797,5.26773,2610.1,2610.0,0.00292801]
[1723923154418,11.70426,2610.1,2610.0,0.00292801]
[1723923154716,2.54064,2609.9,2609.8,0.00573833]
[1723923154922,7.18508,2609.9,2609.8,0.00573833]
[1723923155108,9.58044,2609.9,2609.8,0.00573833]
[1723923155716,9.58406487,2609.9,2609.8,0.00886632]
[1723923156608,6.37626487,2609.9,2609.8,1.44555632]
[1723923157114,6.37626487,2609.9,2609.8,0.00886632]
[1723923158018,0.00362487,2609.9,2609.8,6.38155632]
[1723923158320,0.00362487,2609.9,2609.8,7.44205632]
[1723923160806,0.00362487,2609.9,2609.8,8.44414114]
[1723923161218,0.00362487,2609.9,2609.8,7.44205632]
[1723923162326,0.00362487,2609.9,2609.8,2.54955632]
[1723923162520,2.54426487,2609.9,2609.8,0.00886632]
[1723923164719,6.37626487,2609.9,2609.8,0.00886632]
[1723923165325,6.71866487,2609.9,2609.8,0.00886632]
[1723923172017,2.88666487,2609.9,2609.8,0.00886632]
[1723923172219,2.88666487,2609.9,2609.8,1.44555632]
[1723923172625,2.88666487,2609.9,2609.8,0.00886632]
[1723923174524,6.71866487,2609.9,2609.8,0.00886632]
[1723923175822,2.88666487,2609.9,2609.8,0.00886632]
[1723923176122,6.71866487,2609.9,2609.8,0.00886632]
[1723923176327,2.88666487,2609.9,2609.8,0.00886632]
[1723923177135,6.71866487,2609.9,2609.8,0.00886632]
[1723923177831,2.88666487,2609.9,2609.8,1.44555632]
[1723923178032,0.34602487,2609.9,2609.8,1.44555632]
[1723923180138,2.88666487,2609.9,2609.8,1.44555632]
[1723923180340,6.71866487,2609.9,2609.8,1.44555632]
[1723923181539,2.88666487,2609.9,2609.8,1.44555632]
[1723923187338,2.88666487,2609.9,2609.8,0.00886632]
[1723923187644,2.88666487,2609.9,2609.8,1.44555632]
[1723923189440,2.88666487,2609.9,2609.8,0.00886632]
[1723923189841,2.88666487,2609.9,2609.8,1.44555632]
[1723923190939,2.88666487,2609.9,2609.8,0.00886632]
[1723923192147,2.88666487,2609.9,2609.8,1.44555632]
[1723923192844,1.45002487,2609.9,2609.8,1.44555632]
[1723923193143,2.88666487,2609.9,2609.8,0.00886632]
[1723923194038,2.88666487,2609.9,2609.8,1.44555632]
[1723923194238,2.88666487,2609.9,2609.8,0.00886632]
[1723923198056,4.32330487,2609.9,2609.8,0.00886632]
[1723923198558,8.15530487,2609.9,2609.8,0.00886632]
[1723923199343,14.59194487,2609.9,2609.8,0.00886632]
[1723923199648,1.43691,2609.4,2609.3,1.00208482]
[1723923199852,2.54091,2609.4,2609.3,1.00208482]
[1723923200252,1.43697,2609.3,2609.1,1.50536057]
[1723923200454,1.104,2609.2,2609.1,2.94568389]
[1723923200658,1.104,2609.2,2609.1,4.86205518]
[1723923201251,1.104,2609.2,2609.1,3.35669461]
[1723923201449,1.104,2609.2,2609.1,4.36100943]
[1723923202147,1.104,2609.2,2609.1,4.36105783]
[1723923202348,1.104,2609.2,2609.1,2.44463814]
[1723923202751,1.104,2609.2,2609.1,4.3610074]
[1723923202945,2.1927,2609.3,2609.1,3.35669258]
[1723923203141,2.1927,2609.3,2609.2,1.00410764]
[1723923203751,2.1927,2609.3,2609.1,2.44439096]
[1723923204351,2.1927,2609.3,2609.2,1.43702]
[1723923204949,2.1927,2609.3,2609.2,2.44112764]
[1723923205355,2.1927,2609.3,2609.1,2.44439096]
[1723923205554,2.1927,2609.3,2609.2,1.00410764]
[1723923205754,2.1927,2609.3,2609.1,2.44439096]
[1723923206152,3.62967,2609.3,2609.1,2.44439096]
[1723923208950,2.1927,2609.3,2609.2,2.44112764]
[1723923209961,2.1927,2609.3,2609.2,1.43702]
[1723923210163,0.00573833,2609.5,2609.2,5.94090764]
[1723923210455,0.00573833,2609.5,2609.4,4.04627057]
[1723923210665,0.00573833,2609.5,2609.4,9.79438888]
[1723923210954,0.00573833,2609.5,2609.4,8.55825155]
[1723923211156,0.00573833,2609.5,2609.4,7.55442831]
[1723923211355,0.00573833,2609.5,2609.4,6.64211563]
[1723923211749,0.00573833,2609.5,2609.4,8.55824201]
[1723923212059,0.00573833,2609.5,2609.4,6.64211563]
[1723923212363,0.00573833,2609.5,2609.4,8.55823787]
[1723923212751,0.00573833,2609.5,2609.4,6.64211563]
[1723923213654,0.00573833,2609.5,2609.4,10.16379865]
[1723923213862,0.00573833,2609.5,2609.4,10.66294889]
[1723923214050,0.00028086,2609.5,2609.4,10.66294889]
[1723923214253,0.00028086,2609.5,2609.4,15.66294889]
[1723923215950,0.00028086,2609.5,2609.4,17.09985889]
[1723923216866,0.00028086,2609.5,2609.4,15.09519658]
[1723923217263,0.00028086,2609.5,2609.4,17.09970739]
[1723923218867,0.00028086,2609.5,2609.4,12.09970739]
[1723923219360,0.00028086,2609.5,2609.4,10.39349069]
[1723923219763,0.00028086,2609.5,2609.4,15.39349069]
[1723923221161,0.00028086,2609.5,2609.4,10.39349069]
[1723923221361,0.00028086,2609.5,2609.4,10.39351432]
[1723923222969,0.00028086,2609.5,2609.4,12.39802513]
[1723923225070,0.00028086,2609.5,2609.4,15.60582513]
[1723923225961,0.00028086,2609.5,2609.4,15.60580602]
[1723923227465,0.00028086,2609.5,2609.4,13.60129521]
[1723923227966,0.00028086,2609.5,2609.4,15.10617381]
[1723923228669,0.00028086,2609.5,2609.4,14.80808215]
[1723923231662,0.00028086,2609.5,2609.4,13.30304789]
[1723923232868,0.00028086,2609.5,2609.4,10.09524789]
[1723923233071,0.00028086,2609.5,2609.4,13.30304789]
[1723923233274,0.00028086,2609.5,2609.4,11.86613789]
[1723923233467,0.00028086,2609.5,2609.4,13.37135252]
[1723923235276,0.00028086,2609.5,2609.4,13.37133176]
[1723923235665,0.00028086,2609.5,2609.4,10.16353176]
[1723923235975,0.00028086,2609.5,2609.4,13.37133176]
[1723923237076,0.00028086,2609.5,2609.4,13.37131719]
[1723923237566,0.00028086,2609.5,2609.4,13.30301256]
[1723923237774,0.00362487,2609.9,2609.8,2.87338]
[1723923238074,0.00362487,2609.9,2609.8,7.89927814]
[1723923238273,0.00362487,2609.9,2609.8,19.13877774]
[1723923238475,0.00362487,2609.9,2609.8,19.13821442]
[1723923238972,0.00362487,2609.9,2609.8,12.09917814]
[1723923239268,0.00362487,2609.9,2609.8,19.13820903]
[1723923239569,0.00362487,2609.9,2609.8,15.30697814]
[1723923239776,0.00362487,2609.9,2609.8,15.30655272]
[1723923240569,0.00362487,2609.9,2609.8,19.137687]
[1723923241072,0.00362487,2609.9,2609.8,15.30655272]
[1723923241268,0.00362487,2609.9,2609.8,19.137687]
[1723923241472,0.00362487,2609.9,2609.8,15.30655272]
[1723923242176,0.00362487,2609.9,2609.8,13.30064714]
[1723923242375,0.00362487,2609.9,2609.8,9.46864714]
[1723923242674,0.00362487,2609.9,2609.8,9.77087118]
[1723923243475,0.00362487,2609.9,2609.8,11.27335542]
[1723923244073,0.00362487,2609.9,2609.8,11.27324049]
[1723923244276,0.00362487,2609.9,2609.8,9.77087118]
[1723923244582,0.00362487,2609.9,2609.8,11.27308845]
[1723923246069,0.00362487,2609.9,2609.8,10.97086441]
[1723923246272,0.00362487,2609.9,2609.8,7.76306441]
[1723923246484,0.00362487,2609.9,2609.8,10.97086441]
[1723923247573,0.00362487,2609.9,2609.8,10.97086899]
[1723923247971,0.00362487,2609.9,2609.8,7.76306899]
[1723923248776,0.00362487,2609.9,2609.8,10.97086899]
[1723923251373,0.00362487,2609.9,2609.8,9.10075172]
[1723923251577,0.00362487,2609.9,2609.8,10.60296899]
[1723923252186,0.00362487,2609.9,2609.8,10.60300913]
[1723923252888,0.00573833,2610.1,2610.0,2.87316]
[1723923253186,0.00573833,2610.1,2610.0,7.39475279]
[1723923253482,0.00573833,2610.1,2610.0,11.22595279]
[1723923254077,0.00877619,2610.1,2610.0,9.72397186]
[1723923254279,0.00877619,2610.1,2610.0,11.22556141]
[1723923254478,0.00877619,2610.1,2610.0,9.72397186]
[1723923254686,0.00877619,2610.1,2610.0,11.22587797]
[1723923255789,0.7448,2610.6,2610.5,1.43631]
[1723923255984,0.3569,2610.7,2610.5,9.28687021]
[1723923256181,3.2078,2611.4,2610.7,1.4362]
[1723923256182,0.7398,2610.8,2610.7,1.4362]
[1723923256382,0.7398,2610.8,2610.7,3.54120671]
[1723923256587,0.36913106,2610.8,2610.7,10.57940671]
[1723923256881,0.00493106,2610.8,2610.7,10.57940671]
[1723923257085,0.00493106,2610.8,2610.7,12.49435751]
[1723923257285,0.00493106,2610.8,2610.7,10.57940671]
[1723923258375,0.00493106,2610.8,2610.7,6.3706]
[1723923260971,0.00493106,2610.8,2610.7,9.5784]
[1723923261176,0.00493106,2610.8,2610.7,6.3706]
[1723923263979,0.00493106,2610.8,2610.7,9.5784]
[1723923264584,0.00493106,2610.8,2610.7,6.3706]
[1723923264883,0.00493106,2610.8,2610.7,9.5784]
[1723923265791,0.72683833,2611.0,2610.9,1.43609]
[1723923266093,0.36263833,2611.0,2610.9,2.54009]
[1723923266291,0.36263833,2611.0,2610.9,6.37049]
[1723923267089,0.36637215,2611.0,2610.9,6.37049]
[1723923273293,0.36637215,2611.0,2610.9,2.54009]
[1723923285107,0.36637215,2611.0,2610.9,5.74789]
[1723923288304,0.36637215,2611.0,2610.9,2.54009]
[1723923291413,0.36637215,2611.0,2610.9,1.43609]
[1723923291712,0.36637215,2611.0,2610.9,1.104]
[1723923292504,0.36637215,2611.0,2610.9,2.54009]
[1723923294205,0.00947215,2611.0,2610.9,4.97718671]
[1723923294511,0.0004639,2611.0,2610.9,11.93978572]
[1723923294698,0.0004639,2611.0,2610.9,11.93888263]
[1723923295008,0.0004639,2611.0,2610.9,12.28648263]
[1723923295402,0.0004639,2611.0,2610.9,10.78587566]
[1723923296403,0.0004639,2611.0,2610.9,12.78788908]
[1723923297115,0.0004639,2611.0,2610.9,8.87108]
[1723923297409,0.0004639,2611.0,2610.9,16.61733592]
[1723923297713,0.0004639,2611.0,2610.9,14.70247863]
[1723923297911,0.0004639,2611.0,2610.9,16.61717123]
[1723923298101,0.0004639,2611.0,2610.9,16.9220084]
[1723923298303,0.0004639,2611.0,2610.9,20.12989963]
[1723923298507,0.0004639,2611.0,2610.9,18.12788621]
[1723923300302,0.0004639,2611.0,2610.9,22.07236664]
[1723923300503,0.3588,2611.6,2611.5,1.43576]
[1723923300702,0.3588,2611.6,2611.5,3.54142384]
[1723923301508,0.36336802,2611.6,2611.5,3.54560205]
[1723923303000,0.00456802,2611.6,2611.5,4.45850365]
[1723923303204,0.00456802,2611.6,2611.5,6.80903134]
[1723923303712,0.00456802,2611.6,2611.5,14.46656544]
[1723923304517,1.05311215,2611.8,2611.7,1.43565]
[1723923304518,0.00571215,2611.8,2611.7,1.43565]
[1723923304712,0.00571215,2611.8,2611.7,5.95534928]
[1723923305220,0.00571215,2611.8,2611.7,6.29794928]
[1723923305412,0.00571215,2611.8,2611.7,5.45471205]
[1723923305611,0.00903805,2611.8,2611.7,3.54014661]
[1723923306920,0.00903805,2611.8,2611.7,5.95510669]
[1723923307109,0.00903805,2611.8,2611.7,6.30020669]
[1723923307309,0.00903805,2611.8,2611.7,5.79953625]
[1723923307511,0.00903805,2611.8,2611.7,3.8852134]
[1723923307815,0.00903805,2611.8,2611.7,5.79949874]
[1723923308514,0.00903805,2611.8,2611.7,3.8852134]
[1723923310111,0.00903805,2611.8,2611.7,3.5401134]
[1723923311119,0.00903805,2611.8,2611.7,2.53965]
[1723923311709,0.00903805,2611.8,2611.7,3.5401134]
[1723923312515,0.00903805,2611.8,2611.7,2.53965]
[1723923312719,0.00903805,2611.8,2611.7,3.5401134]
[1723923313025,0.00903805,2611.8,2611.7,2.53965]
[1723923313214,0.00903805,2611.8,2611.7,7.3689134]
[1723923313418,0.7439,2612.1,2612.0,1.43548]
[1723923313616,0.3503,2612.4,2612.2,1.43535]
[1723923313829,0.3503,2612.4,2612.3,1.104]
[1723923313830,1.0806,2612.4,2612.3,1.104]
[1723923314318,6.34386,2612.4,2612.3,1.104]
[1723923314525,6.3478929,2612.4,2612.3,1.104]
[1723923314926,6.3478929,2612.4,2612.2,1.104]
[1723923315109,2.5198929,2612.4,2612.2,1.104]
[1723923315310,2.5198929,2612.4,2612.2,2.53937]
[1723923315514,1.0846329,2612.4,2612.3,1.43532]
[1723923315921,6.3479129,2612.4,2612.2,2.53935]
[1723923316127,2.5199129,2612.4,2612.2,2.53935]
[1723923317023,1.43537,2612.2,2612.1,0.00573833]
[1723923317229,2.53937,2612.2,2612.1,0.00573833]
[1723923317528,6.36737,2612.2,2612.1,0.00573833]
[1723923317823,5.26337,2612.2,2612.1,0.00573833]
[1723923321241,3.828,2612.2,2612.1,1.44116833]
[1723923321425,5.7277229,2612.4,2612.2,1.43535]
[1723923321734,1.43532,2612.3,2612.2,1.43535]
[1723923322118,5.26332,2612.3,2612.2,1.43535]
[1723923322835,1.43532,2612.3,2612.2,1.43535]
[1723923323030,4.2924329,2612.4,2612.3,1.43532]
[1723923323332,1.0846329,2612.4,2612.3,1.43532]
[1723923323633,4.9126329,2612.4,2612.3,1.43532]
[1723923324633,6.3478929,2612.4,2612.3,1.43532]
[1723923325529,1.43537,2612.2,2612.1,1.44114833]
[1723923325932,5.26337,2612.2,2612.1,1.44114833]
[1723923327139,3.828,2612.2,2612.1,1.44114833]
[1723923327328,5.26337,2612.2,2612.1,1.44114833]
[1723923329632,5.26337,2612.2,2612.1,0.00573833]
[1723923330034,3.828,2612.2,2612.1,2.54516833]
[1723923330235,1.43534,2612.3,2612.1,2.54516833]
[1723923332745,1.43537,2612.2,2612.1,2.54516833]
[1723923333135,5.26337,2612.2,2612.1,2.54516833]
[1723923333744,5.26337,2612.2,2612.1,1.10973833]
[1723923338750,14.90654,2612.2,2612.1,0.00573833]
[1723923339046,14.90654,2612.2,2611.5,0.00417821]
[1723923339047,1.4357,2611.6,2611.5,0.00417821]
[1723923339350,3.9754,2611.6,2611.5,0.00417821]
[1723923339640,13.9146,2611.6,2611.5,0.00417821]
[1723923340437,12.4789,2611.6,2611.5,0.00417821]
[1723923340937,1.43581,2611.4,2611.3,0.00573833]
[1723923341139,4.64361,2611.4,2611.3,0.00573833]
[1723923341338,8.47321,2611.4,2611.3,1.10973833]
[1723923341939,8.47321,2611.4,2611.3,1.1125097]
[1723923347040,7.0374,2611.4,2611.3,2.5483797]
[1723923347249,8.47321,2611.4,2611.3,2.5483797]
[1723923347451,3.2078,2611.4,2611.3,2.5483797]
[1723923347648,4.64361,2611.4,2611.3,2.5483797]
[1723923347958,3.2078,2611.4,2611.3,2.5483797]
[1723923348142,4.64361,2611.4,2611.3,2.5483797]
[1723923349957,8.47321,2611.4,2611.3,1.1125097]
[1723923351659,8.47321,2611.4,2611.3,2.5483797]
[1723923351955,5.26541,2611.4,2611.3,2.5483797]
[1723923353249,2.54613,2611.6,2611.3,2.5483797]
[1723923353250,1.43578,2611.5,2611.3,2.5483797]
[1723923353451,1.43578,2611.5,2611.4,2.53981]
[1723923353653,1.43578,2611.5,2611.4,1.104]
[1723923353955,1.43578,2611.5,2611.4,2.53981]
[1723923354461,1.43578,2611.5,2611.4,1.104]
[1723923355059,4.64347,2611.7,2611.4,1.104]
[1723923355252,5.00847,2611.7,2611.6,2.5397]
[1723923356564,8.83727,2611.7,2611.6,1.104]
[1723923356751,5.00847,2611.7,2611.6,1.104]
[1723923357157,8.83727,2611.7,2611.6,1.104]
[1723923357463,8.83727,2611.7,2611.6,2.5397]
[1723923358558,5.62947,2611.7,2611.6,1.104]
[1723923358760,8.83727,2611.7,2611.6,1.104]
[1723923359862,8.47227,2611.7,2611.6,1.104]
[1723923360157,1.4357,2611.6,2611.5,2.88352]
[1723923361867,4.99919,2611.7,2611.6,1.4357]
[1723923362367,1.4357,2611.6,2611.5,2.88353]
[1723923362752,1.4357,2611.6,2611.5,2.53973]
[1723923363262,1.8059,2611.6,2611.5,2.53973]
[1723923363463,3.2078,2611.7,2611.6,1.4357]
[1723923363670,4.088,2612.1,2611.9,1.43552]
[1723923363867,1.43552,2612.0,2611.9,1.43552]
[1723923364059,1.43548,2612.0,2611.8,2.53957]
[1723923364372,4.088,2612.1,2611.8,2.53957]
[1723923364560,1.43554,2611.9,2611.8,2.53957]
[1723923365368,1.4355,2612.0,2611.9,1.43548]
[1723923365567,4.088,2612.1,2611.8,1.104]
[1723923365568,5.52347,2612.1,2612.0,1.43548]
[1723923365758,1.4355,2612.0,2611.9,1.4355]
[1723923368269,1.43554,2611.9,2611.8,1.43555]
[1723923368461,1.78754,2611.9,2611.8,1.43555]
[1723923368661,1.78754,2611.9,2611.7,1.104]
[1723923368662,1.43559,2611.8,2611.7,1.43562]
[1723923368861,2.16579,2611.8,2611.7,1.43562]
[1723923369164,0.7302,2611.8,2611.6,2.53967]
[1723923369362,1.43565,2611.7,2611.6,2.53967]
[1723923371563,2.16581,2611.8,2611.7,1.43565]
[1723923371772,2.16581,2611.8,2611.7,2.53965]
[1723923372277,1.4355,2612.0,2611.8,1.43554]
[1723923372463,0.3723,2611.9,2611.8,2.53954]
[1723923374773,4.3118,2612.2,2612.1,1.43543]
[1723923374774,4.6432,2612.2,2612.1,1.43543]
[1723923374977,4.6432,2612.2,2612.1,1.104]
[1723923375175,1.43543,2612.1,2612.0,1.43546]
[1723923376581,0.7284,2612.3,2612.0,1.43546]
[1723923376582,1.43541,2612.2,2612.0,1.43546]
[1723923376779,0.7284,2612.3,2611.9,2.53951]
[1723923377072,0.7284,2612.3,2612.0,1.43548]
[1723923377073,1.43546,2612.1,2612.0,1.43548]
[1723923377271,4.64321,2612.2,2612.0,1.43548]
[1723923378076,1.43543,2612.1,2612.0,1.43548]
[1723923378973,4.64321,2612.2,2612.0,1.43548]
[1723923379281,4.64321,2612.2,2612.1,1.43543]
[1723923379482,4.64321,2612.2,2612.0,1.43544]
[1723923380474,1.43543,2612.1,2612.0,1.43544]
[1723923383375,4.6432,2612.2,2612.1,1.43543]
[1723923384285,1.4354,2612.2,2612.1,2.53943]
[1723923386073,1.4354,2612.2,2611.7,1.71888742]
[1723923386074,1.43543,2612.1,2611.9,2.5395]
[1723923386272,0.3726,2612.0,2611.9,2.5395]
[1723923386587,0.7205,2612.0,2611.9,2.5395]
[1723923388382,2.15598,2612.0,2611.9,2.5395]
[1723923389178,0.7205,2612.0,2611.9,2.5395]
[1723923398081,2.15598,2612.0,2611.9,1.104]
[1723923398282,5.3638,2612.0,2611.6,0.99928742]
[1723923398483,1.80454,2611.9,2611.7,1.104]
[1723923398685,1.43559,2611.8,2611.7,1.104]
[1723923400694,0.369,2611.9,2611.8,1.43559]
[1723923400888,0.369,2611.9,2611.8,2.53959]
[1723923401084,0.369,2611.9,2611.8,3.53887742]
[1723923401294,0.369,2611.9,2611.8,2.53959]
[1723923401592,0.369,2611.9,2611.8,3.53887742]
[1723923402389,0.369,2611.9,2611.8,2.53959]
[1723923403298,0.369,2611.9,2611.8,3.53887742]
[1723923404786,1.43549,2612.0,2611.9,1.43554]
[1723923404999,1.43547,2612.1,2611.9,1.43554]
[1723923405191,1.43547,2612.1,2612.0,1.104]
[1723923408401,1.43547,2612.1,2612.0,2.53948]
[1723923410286,3.2078,2612.3,2612.2,1.43537]
[1723923410490,0.37947123,2612.4,2612.3,1.43532]
[1723923410689,0.73777123,2612.4,2612.3,2.53932]
[1723923411696,2.17303123,2612.4,2612.3,2.53932]
[1723923412000,2.17303123,2612.4,2612.3,1.43532]
[1723923416501,0.73777123,2612.4,2612.3,1.43532]
[1723923418109,2.17303123,2612.4,2612.3,1.43532]
[1723923418310,1.43532,2612.3,2612.2,2.53936]
[1723923421709,2.17307123,2612.4,2612.3,1.43532]
[1723923422307,2.17307123,2612.4,2612.3,2.53932]
[1723923422808,2.17307123,2612.4,2612.3,1.104]
[1723923426310,2.17307123,2612.4,2612.3,2.53932]
[1723923426511,2.17307123,2612.4,2612.3,1.104]
[1723923429513,1.43532,2612.3,2612.2,1.104]
[1723923429713,1.43532,2612.3,2612.2,2.53937]
[1723923430207,1.43532,2612.3,2612.2,1.104]
[1723923430409,6.36732,2612.3,2612.1,1.104]
[1723923430615,1.104,2612.2,2611.4,3.2078]
[1723923430917,1.43564,2611.8,2611.7,1.104]
[1723923431605,1.43565,2611.7,2611.5,1.43575]
[1723923431806,0.7263,2611.9,2611.6,1.104]
[1723923432113,0.7263,2611.9,2611.8,1.104]
[1723923432518,2.16184,2611.9,2611.8,1.104]
[1723923436907,0.7263,2611.9,2611.8,1.104]
[1723923437106,0.3668,2611.9,2611.8,1.104]
[1723923438417,1.80234,2611.9,2611.8,1.104]
[1723923442321,0.3668,2611.9,2611.8,1.104]
[1723923442517,0.3668,2611.9,2611.8,2.10668778]
[1723923442720,0.3668,2611.9,2611.8,3.54227778]
[1723923443416,0.3668,2611.9,2611.8,2.53959]
[1723923443807,1.80234,2611.9,2611.8,2.10668778]
[1723923444010,1.80234,2611.9,2611.8,1.104]
[1723923452323,5.63114,2611.9,2611.6,1.00268778]
[1723923452519,1.43565,2611.7,2611.6,1.104]
[1723923453924,1.43562,2611.8,2611.6,2.5397]
[1723923454127,0.3734,2611.7,2611.6,2.5397]
[1723923454329,0.739,2611.7,2611.6,2.5397]
[1723923460128,0.739,2611.7,2611.6,3.54238778]
[1723923461325,0.739,2611.7,2611.6,2.5397]
[1723923461529,0.739,2611.7,2611.6,3.54238778]
[1723923462218,2.17465,2611.7,2611.6,1.104]
[1723923462829,0.739,2611.7,2611.6,1.104]
[1723923463226,0.739,2611.7,2611.6,3.54238778]
[1723923463736,0.739,2611.7,2611.6,2.10668778]
[1723923463948,2.17465,2611.7,2611.6,2.10668778]
[1723923466035,0.739,2611.7,2611.6,2.10668778]
[1723923466230,0.739,2611.7,2611.6,3.54238778]
[1723923466725,0.739,2611.7,2611.6,2.10668778]
[1723923468835,0.739,2611.7,2611.6,1.104]
[1723923469326,2.17465,2611.7,2611.6,1.104]
[1723923470233,0.739,2611.7,2611.6,2.5397]
[1723923471450,0.739,2611.7,2611.6,3.54238778]
[1723923472541,0.3668,2611.9,2611.8,1.43559]
[1723923472738,0.3668,2611.9,2611.8,2.53959]
[1723923473748,1.80234,2611.9,2611.8,2.53959]
[1723923474146,1.80234,2611.9,2611.8,1.104]
[1723923474642,1.80234,2611.9,2611.8,2.53959]
[1723923475651,1.80234,2611.9,2611.8,1.104]
[1723923475854,1.80234,2611.9,2611.8,2.53959]
[1723923476038,1.80234,2611.9,2611.7,1.104]
[1723923476238,1.80234,2611.9,2611.8,1.43559]
[1723923478050,0.3668,2611.9,2611.8,1.43559]
[1723923480248,1.80234,2611.9,2611.8,1.43559]
[1723923480853,0.3668,2611.9,2611.8,1.43559]
[1723923481250,1.80234,2611.9,2611.8,1.43559]
[1723923481455,0.3668,2611.9,2611.8,1.43559]
[1723923482149,1.43559,2611.8,2611.7,1.104]
[1723923482447,1.43559,2611.8,2611.6,3.54236778]
[1723923482754,0.3641,2611.7,2611.6,3.54236778]
[1723923483352,0.3641,2611.7,2611.6,7.37116778]
[1723923483553,0.3641,2611.7,2611.6,9.2857143]
[1723923484048,0.3641,2611.7,2611.6,7.37116778]